[Event "*** Titled Tuesday Blitz"]
[Site "Chess.com"]
[Date "2021.04.27"]
[Round "11"]
[White "masteryoungK"]
[Black "Matols"]
[Result "1-0"]
[WhiteElo "2433"]
[BlackElo "2271"]
[TimeControl "180+1"]
[EndTime "12:03:13 PDT"]
[Termination "masteryoungK won by resignation"]

1. e4 {[%clk 0:03:00.9]} 1... e6 {[%clk 0:02:59.8]} 2. d4 {[%clk 0:03:00.8]}
2... d5 {[%clk 0:02:59.9]} 3. Nc3 {[%clk 0:03:01.7]} 3... Nf6 {[%clk 0:02:59.4]}
4. Bg5 {[%clk 0:03:01.2]} 4... Bb4 {[%clk 0:02:59.2]} 5. e5 {[%clk 0:03:01.7]}
5... h6 {[%clk 0:02:58.8]} 6. Bc1 {[%clk 0:03:01.6]} 6... Ne4 {[%clk 0:02:57.8]}
7. Qg4 {[%clk 0:03:00.7]} 7... g6 {[%clk 0:02:55]} 8. Ne2 {[%clk 0:03:00.5]}
8... c5 {[%clk 0:02:52]} 9. a3 {[%clk 0:02:56.7]} 9... Bxc3+ {[%clk 0:02:51.5]}
10. bxc3 {[%clk 0:02:57.6]} 10... Nc6 {[%clk 0:02:39.7]} 11. f3 {[%clk
0:02:52.2]} 11... Ng5 {[%clk 0:02:20.7]} 12. h4 {[%clk 0:02:51.6]} 12... Nh7
{[%clk 0:02:20.1]} 13. Bxh6 {[%clk 0:02:50.9]} 13... cxd4 {[%clk 0:01:57.7]} 14.
cxd4 {[%clk 0:02:49.6]} 14... Bd7 {[%clk 0:01:53.2]} 15. h5 {[%clk 0:02:40.7]}
15... Nf6 {[%clk 0:01:45.3]} 16. exf6 {[%clk 0:02:34.6]} 16... Rxh6 {[%clk
0:01:43.2]} 17. hxg6 {[%clk 0:02:34.9]} 17... Rxh1 {[%clk 0:01:35.3]} 18. g7
{[%clk 0:02:35.3]} 18... Qa5+ {[%clk 0:01:33.6]} 19. Kf2 {[%clk 0:02:29.3]}
19... O-O-O {[%clk 0:01:31.8]} 20. g8=Q {[%clk 0:02:29.3]} 20... Rxg8 {[%clk
0:01:27.4]} 21. Qxg8+ {[%clk 0:02:30.2]} 21... Kc7 {[%clk 0:01:27]} 22. Qxf7
{[%clk 0:01:40.3]} 22... Qd2 {[%clk 0:01:25.8]} 23. Rb1 {[%clk 0:01:27.5]} 23...
b6 {[%clk 0:01:10.2]} 24. c3 {[%clk 0:01:23.7]} 24... Na5 {[%clk 0:00:55.2]} 25.
Qg7 {[%clk 0:00:43.4]} 25... Nc4 {[%clk 0:00:53.2]} 26. f7 {[%clk 0:00:41.1]}
26... Ne3 {[%clk 0:00:18.8]} 27. Qe5+ {[%clk 0:00:40]} 27... Kb7 {[%clk
0:00:17.6]} 28. Qxe3 {[%clk 0:00:40.5]} 1-0

[Event "*** Titled Tuesday Blitz"]
[Site "Chess.com"]
[Date "2021.04.27"]
[Round "11"]
[White "jamalm2"]
[Black "sm_sharon"]
[Result "0-1"]
[WhiteElo "2029"]
[BlackElo "2153"]
[TimeControl "180+1"]
[EndTime "12:03:14 PDT"]
[Termination "sm_sharon won by resignation"]

1. d4 {[%clk 0:03:00.9]} 1... Nf6 {[%clk 0:02:59.1]} 2. c4 {[%clk 0:03:00.2]}
2... g6 {[%clk 0:02:59.5]} 3. Nc3 {[%clk 0:03:00]} 3... Bg7 {[%clk 0:03:00.2]}
4. e4 {[%clk 0:03:00.6]} 4... O-O {[%clk 0:03:00.6]} 5. Bg5 {[%clk 0:03:00.3]}
5... d6 {[%clk 0:03:00.2]} 6. Be2 {[%clk 0:03:00.2]} 6... c5 {[%clk 0:02:59.1]}
7. d5 {[%clk 0:02:58.8]} 7... Na6 {[%clk 0:02:56.1]} 8. Qd2 {[%clk 0:02:58.5]}
8... Re8 {[%clk 0:02:55.2]} 9. f3 {[%clk 0:02:50.8]} 9... Rb8 {[%clk 0:02:55]}
10. Bd1 {[%clk 0:02:45.7]} 10... Bd7 {[%clk 0:02:45.7]} 11. Nge2 {[%clk
0:02:45.2]} 11... b5 {[%clk 0:02:43.8]} 12. cxb5 {[%clk 0:02:44.2]} 12... Bxb5
{[%clk 0:02:37.3]} 13. Nxb5 {[%clk 0:02:44]} 13... Rxb5 {[%clk 0:02:37.1]} 14.
Ba4 {[%clk 0:02:43.8]} 14... Nxe4 {[%clk 0:02:29.5]} 15. fxe4 {[%clk 0:02:42.2]}
15... Rxb2 {[%clk 0:02:28.9]} 16. Qe3 {[%clk 0:01:59.4]} 16... Qa5+ {[%clk
0:02:22.8]} 17. Kf1 {[%clk 0:01:42.4]} 17... Qxa4 {[%clk 0:02:18.9]} 18. Re1
{[%clk 0:01:31.9]} 18... Qb5 {[%clk 0:02:00.8]} 19. h4 {[%clk 0:01:17.8]} 19...
Nb4 {[%clk 0:01:56.2]} 20. h5 {[%clk 0:00:58]} 20... Nc2 {[%clk 0:01:54.8]} 21.
Qf3 {[%clk 0:00:54.8]} 21... Nxe1 {[%clk 0:01:49.7]} 22. Kxe1 {[%clk 0:00:33.5]}
22... Rb1+ {[%clk 0:01:42.9]} 23. Kf2 {[%clk 0:00:33.3]} 23... Rxh1 {[%clk
0:01:41.2]} 24. hxg6 {[%clk 0:00:33.8]} 24... hxg6 {[%clk 0:01:39.9]} 25. Qg4
{[%clk 0:00:28.5]} 25... a5 {[%clk 0:01:33.8]} 26. Ng3 {[%clk 0:00:26.5]} 26...
Bd4+ {[%clk 0:01:29.5]} 27. Be3 {[%clk 0:00:21.3]} 27... Qb2+ {[%clk 0:01:24.9]}
28. Ne2 {[%clk 0:00:20.8]} 28... Bxe3+ {[%clk 0:01:14.7]} 29. Kxe3 {[%clk
0:00:20.3]} 29... Qxa2 {[%clk 0:01:14.3]} 30. Qd7 {[%clk 0:00:18.7]} 30... Kf8
{[%clk 0:01:13.7]} 31. e5 {[%clk 0:00:17]} 31... Qxd5 {[%clk 0:01:11.8]} 32.
exd6 {[%clk 0:00:12.9]} 32... exd6+ {[%clk 0:01:11.6]} 33. Kf2 {[%clk
0:00:12.7]} 33... Rxe2+ {[%clk 0:01:08.6]} 0-1

[Event "*** Titled Tuesday Blitz"]
[Site "Chess.com"]
[Date "2021.04.27"]
[Round "11"]
[White "chessmachine14"]
[Black "viktorgen2021"]
[Result "0-1"]
[WhiteElo "2269"]
[BlackElo "2378"]
[TimeControl "180+1"]
[EndTime "12:03:15 PDT"]
[Termination "viktorgen2021 won on time"]

1. d4 {[%clk 0:03:00.9]} 1... Nf6 {[%clk 0:02:58.9]} 2. Bg5 {[%clk 0:02:59.5]}
2... e6 {[%clk 0:02:59.1]} 3. e4 {[%clk 0:02:58.4]} 3... Be7 {[%clk 0:02:58.6]}
4. Nc3 {[%clk 0:02:55.2]} 4... d5 {[%clk 0:02:58.1]} 5. e5 {[%clk 0:02:45.6]}
5... Nfd7 {[%clk 0:02:57.5]} 6. Bxe7 {[%clk 0:02:40.7]} 6... Qxe7 {[%clk
0:02:58.4]} 7. Qg4 {[%clk 0:02:33.8]} 7... Kf8 {[%clk 0:02:52.2]} 8. O-O-O
{[%clk 0:02:31.4]} 8... a6 {[%clk 0:02:50.1]} 9. h4 {[%clk 0:02:30.7]} 9... c5
{[%clk 0:02:49.7]} 10. f4 {[%clk 0:02:06.1]} 10... Nc6 {[%clk 0:02:49.1]} 11.
Nf3 {[%clk 0:02:04.1]} 11... b5 {[%clk 0:02:46.2]} 12. h5 {[%clk 0:02:03.2]}
12... h6 {[%clk 0:02:44.7]} 13. f5 {[%clk 0:01:55.5]} 13... exf5 {[%clk
0:02:38.6]} 14. Qf4 {[%clk 0:01:46.6]} 14... cxd4 {[%clk 0:02:31.4]} 15. Nxd5
{[%clk 0:01:43.5]} 15... Qc5 {[%clk 0:02:27.3]} 16. Nxd4 {[%clk 0:01:00.6]}
16... Qxd5 {[%clk 0:02:08]} 17. Nxf5 {[%clk 0:00:55.9]} 17... Qxe5 {[%clk
0:02:04.1]} 18. Qg4 {[%clk 0:00:56.1]} 18... Nc5 {[%clk 0:01:53]} 19. Qf3 {[%clk
0:00:37.8]} 19... Bxf5 {[%clk 0:01:44.3]} 20. Qxc6 {[%clk 0:00:36.9]} 20... Rc8
{[%clk 0:01:44.9]} 21. Qf3 {[%clk 0:00:24]} 21... Kg8 {[%clk 0:01:19.5]} 22. g4
{[%clk 0:00:21.9]} 22... Be4 {[%clk 0:01:19.2]} 23. Qe3 {[%clk 0:00:12]} 23...
Nb3+ {[%clk 0:01:18.8]} 24. Qxb3 {[%clk 0:00:11]} 24... Bxh1 {[%clk 0:01:18.6]}
25. Bd3 {[%clk 0:00:08]} 25... Be4 {[%clk 0:01:16.2]} 26. Re1 {[%clk 0:00:07.5]}
26... Qg5+ {[%clk 0:01:14.6]} 27. Kb1 {[%clk 0:00:07.4]} 27... Bxd3 {[%clk
0:01:15.2]} 28. Qxd3 {[%clk 0:00:07.3]} 28... Rd8 {[%clk 0:01:12.2]} 29. Qe4
{[%clk 0:00:04.7]} 29... Qd2 {[%clk 0:01:09.8]} 30. a3 {[%clk 0:00:04.2]} 30...
Qd5 {[%clk 0:01:09.4]} 31. Qf4 {[%clk 0:00:03.3]} 31... Kh7 {[%clk 0:01:08.8]}
32. Re7 {[%clk 0:00:02.8]} 32... Rhf8 {[%clk 0:01:07.3]} 33. b3 {[%clk
0:00:02.1]} 33... Kg8 {[%clk 0:01:05.7]} 0-1

[Event "*** Titled Tuesday Blitz"]
[Site "Chess.com"]
[Date "2021.04.27"]
[Round "11"]
[White "catzapto"]
[Black "gxbg2000"]
[Result "0-1"]
[WhiteElo "2080"]
[BlackElo "1969"]
[TimeControl "180+1"]
[EndTime "12:03:16 PDT"]
[Termination "gxbg2000 won by resignation"]

1. e4 {[%clk 0:03:00.3]} 1... e5 {[%clk 0:02:53.7]} 2. Nf3 {[%clk 0:02:58.4]}
2... d6 {[%clk 0:02:53.1]} 3. d4 {[%clk 0:02:58.8]} 3... exd4 {[%clk 0:02:52.3]}
4. Bc4 {[%clk 0:02:56.9]} 4... Be7 {[%clk 0:02:51.6]} 5. c3 {[%clk 0:02:55.2]}
5... Nf6 {[%clk 0:02:46.4]} 6. Ng5 {[%clk 0:01:55.2]} 6... O-O {[%clk
0:02:44.4]} 7. cxd4 {[%clk 0:01:52.3]} 7... h6 {[%clk 0:02:41.8]} 8. h4 {[%clk
0:01:51.8]} 8... c5 {[%clk 0:02:26.9]} 9. dxc5 {[%clk 0:01:01.1]} 9... Qa5+
{[%clk 0:02:22.9]} 10. Bd2 {[%clk 0:00:54.3]} 10... Qxc5 {[%clk 0:02:21.2]} 11.
Bxf7+ {[%clk 0:00:54.7]} 11... Rxf7 {[%clk 0:02:20.4]} 12. Nxf7 {[%clk
0:00:55.6]} 12... Kxf7 {[%clk 0:02:20.4]} 13. Nc3 {[%clk 0:00:56.5]} 13... Be6
{[%clk 0:02:15.4]} 14. f3 {[%clk 0:00:53.7]} 14... Nc6 {[%clk 0:02:11.9]} 15. g4
{[%clk 0:00:54.1]} 15... Nh7 {[%clk 0:02:05.1]} 16. Qe2 {[%clk 0:00:36.1]} 16...
Nd4 {[%clk 0:02:02.9]} 17. Qd3 {[%clk 0:00:32.9]} 17... Qe5 {[%clk 0:02:00.9]}
18. O-O-O {[%clk 0:00:26.4]} 18... Rc8 {[%clk 0:01:52.3]} 19. Kb1 {[%clk
0:00:25.3]} 19... a6 {[%clk 0:01:46.8]} 20. f4 {[%clk 0:00:21.7]} 20... Qc5
{[%clk 0:01:46]} 21. f5 {[%clk 0:00:19.6]} 21... Bc4 {[%clk 0:01:44.9]} 22. Qg3
{[%clk 0:00:15]} 22... Bf6 {[%clk 0:01:41.4]} 23. g5 {[%clk 0:00:15]} 23... hxg5
{[%clk 0:01:41.2]} 24. hxg5 {[%clk 0:00:15.6]} 24... Nxg5 {[%clk 0:01:37.8]} 25.
Bxg5 {[%clk 0:00:15.6]} 25... Be5 {[%clk 0:01:37.2]} 26. Bf4 {[%clk 0:00:12.7]}
26... Ne2 {[%clk 0:01:27.7]} 27. Qe3 {[%clk 0:00:09.4]} 27... Nxf4 {[%clk
0:01:22.8]} 28. Qxc5 {[%clk 0:00:09.2]} 28... Rxc5 {[%clk 0:01:21.8]} 29. Rc1
{[%clk 0:00:06.7]} 29... b5 {[%clk 0:01:16]} 30. b3 {[%clk 0:00:04.5]} 30...
Bd3+ {[%clk 0:01:15.4]} 31. Kb2 {[%clk 0:00:04.6]} 31... Bxe4 {[%clk 0:01:14.1]}
32. Rhe1 {[%clk 0:00:01.5]} 32... Nd3+ {[%clk 0:01:14]} 33. Kc2 {[%clk
0:00:01.6]} 33... Nxe1+ {[%clk 0:01:13.8]} 34. Kd2 {[%clk 0:00:01.6]} 34...
Bxc3+ {[%clk 0:01:13.3]} 35. Rxc3 {[%clk 0:00:01.8]} 35... Rxc3 {[%clk
0:01:13.5]} 36. Kxc3 {[%clk 0:00:02.7]} 36... Bxf5 {[%clk 0:01:13.4]} 37. Kd4
{[%clk 0:00:03.6]} 37... Nf3+ {[%clk 0:01:12.9]} 38. Kd5 {[%clk 0:00:04.5]}
38... Ke7 {[%clk 0:01:11.9]} 0-1

[Event "*** Titled Tuesday Blitz"]
[Site "Chess.com"]
[Date "2021.04.27"]
[Round "11"]
[White "rpragchess"]
[Black "Vanina1989"]
[Result "1-0"]
[WhiteElo "2910"]
[BlackElo "2823"]
[TimeControl "180+1"]
[EndTime "12:03:22 PDT"]
[Termination "rpragchess won by resignation"]

1. Nf3 {[%clk 0:03:00.9]} 1... d5 {[%clk 0:02:59.7]} 2. g3 {[%clk 0:03:00.5]}
2... c6 {[%clk 0:02:59.5]} 3. Bg2 {[%clk 0:03:00.8]} 3... Bg4 {[%clk 0:02:59.7]}
4. O-O {[%clk 0:02:59.8]} 4... Nd7 {[%clk 0:02:59.9]} 5. d3 {[%clk 0:02:58.1]}
5... e6 {[%clk 0:03:00.1]} 6. h3 {[%clk 0:02:56.5]} 6... Bh5 {[%clk 0:02:59.7]}
7. e4 {[%clk 0:02:53.3]} 7... Bc5 {[%clk 0:02:59.6]} 8. exd5 {[%clk 0:02:49.1]}
8... cxd5 {[%clk 0:02:58.7]} 9. c4 {[%clk 0:02:49.4]} 9... Ne7 {[%clk
0:02:50.2]} 10. Nc3 {[%clk 0:02:48.8]} 10... dxc4 {[%clk 0:02:41.5]} 11. dxc4
{[%clk 0:02:44.9]} 11... O-O {[%clk 0:02:41.6]} 12. Ne4 {[%clk 0:02:44.4]} 12...
Qc7 {[%clk 0:02:31.5]} 13. Bf4 {[%clk 0:02:37.6]} 13... e5 {[%clk 0:02:07.8]}
14. Nxc5 {[%clk 0:02:36.7]} 14... Qxc5 {[%clk 0:01:53.4]} 15. Be3 {[%clk
0:02:32.4]} 15... Qc7 {[%clk 0:01:49.6]} 16. g4 {[%clk 0:02:30.3]} 16... Bg6
{[%clk 0:01:49.3]} 17. Rc1 {[%clk 0:02:30.1]} 17... Nc5 {[%clk 0:01:43.3]} 18.
Nh4 {[%clk 0:02:13.3]} 18... Rfd8 {[%clk 0:01:42.9]} 19. Qf3 {[%clk 0:02:09.8]}
19... Bd3 {[%clk 0:01:26.8]} 20. Rfd1 {[%clk 0:02:09.1]} 20... e4 {[%clk
0:01:21.4]} 21. Qg3 {[%clk 0:02:07.9]} 21... Qxg3 {[%clk 0:01:18.5]} 22. fxg3
{[%clk 0:02:08.8]} 22... Rac8 {[%clk 0:01:10.7]} 23. Nf5 {[%clk 0:02:02.6]}
23... Nxf5 {[%clk 0:01:00.1]} 24. gxf5 {[%clk 0:02:03.5]} 24... b6 {[%clk
0:00:56.4]} 25. b3 {[%clk 0:02:01.5]} 25... Re8 {[%clk 0:00:49.8]} 26. g4 {[%clk
0:01:57.1]} 26... h5 {[%clk 0:00:48.9]} 27. Kh2 {[%clk 0:01:53.4]} 27... f6
{[%clk 0:00:48.9]} 28. Kg3 {[%clk 0:01:53.3]} 28... Kf7 {[%clk 0:00:47.1]} 29.
Rd2 {[%clk 0:01:41.4]} 29... Rh8 {[%clk 0:00:45.9]} 30. b4 {[%clk 0:01:31.4]}
30... Na6 {[%clk 0:00:34.8]} 31. a3 {[%clk 0:01:25.1]} 31... hxg4 {[%clk
0:00:34.2]} 32. hxg4 {[%clk 0:01:25]} 32... Nb8 {[%clk 0:00:31.7]} 33. c5 {[%clk
0:01:24.1]} 33... b5 {[%clk 0:00:25.8]} 34. Bf4 {[%clk 0:01:18.4]} 34... Nc6
{[%clk 0:00:25.3]} 35. Re1 {[%clk 0:01:17.7]} 35... Rcd8 {[%clk 0:00:24.3]} 36.
Bd6 {[%clk 0:01:16.2]} 36... Rde8 {[%clk 0:00:17.5]} 37. Rxd3 {[%clk 0:01:14.8]}
37... Ne5 {[%clk 0:00:13.5]} 38. Rde3 {[%clk 0:01:11.4]} 38... Nd3 {[%clk
0:00:12]} 39. Bxe4 {[%clk 0:01:09.9]} 39... Rxe4 {[%clk 0:00:10.4]} 40. Rxe4
{[%clk 0:01:10.3]} 1-0

[Event "*** Titled Tuesday Blitz"]
[Site "Chess.com"]
[Date "2021.04.27"]
[Round "11"]
[White "Cambek64"]
[Black "Romadk"]
[Result "1-0"]
[WhiteElo "2483"]
[BlackElo "2332"]
[TimeControl "180+1"]
[EndTime "12:03:30 PDT"]
[Termination "Cambek64 won by resignation"]

1. e4 {[%clk 0:02:58.7]} 1... Nf6 {[%clk 0:03:00]} 2. e5 {[%clk 0:02:55.2]} 2...
Nd5 {[%clk 0:03:00.1]} 3. d4 {[%clk 0:02:53.8]} 3... d6 {[%clk 0:03:00]} 4. c4
{[%clk 0:02:54.3]} 4... Nb6 {[%clk 0:03:00]} 5. exd6 {[%clk 0:02:54.7]} 5...
cxd6 {[%clk 0:03:00.9]} 6. Be3 {[%clk 0:02:53.8]} 6... g6 {[%clk 0:02:59.7]} 7.
Nc3 {[%clk 0:02:54.3]} 7... Bg7 {[%clk 0:03:00.4]} 8. Rc1 {[%clk 0:02:54.2]}
8... O-O {[%clk 0:03:00.6]} 9. b3 {[%clk 0:02:53.4]} 9... Bf5 {[%clk 0:02:52.2]}
10. h3 {[%clk 0:02:49.6]} 10... d5 {[%clk 0:02:51.6]} 11. c5 {[%clk 0:02:47.6]}
11... Nc8 {[%clk 0:02:51.7]} 12. Nf3 {[%clk 0:02:45.5]} 12... Nc6 {[%clk
0:02:48.7]} 13. Be2 {[%clk 0:02:36]} 13... e6 {[%clk 0:02:48.5]} 14. O-O {[%clk
0:02:34.3]} 14... h6 {[%clk 0:02:48.6]} 15. a3 {[%clk 0:02:32.9]} 15... g5
{[%clk 0:02:48.3]} 16. b4 {[%clk 0:02:32.1]} 16... a6 {[%clk 0:02:45.8]} 17. Qb3
{[%clk 0:02:28.6]} 17... N8e7 {[%clk 0:02:45.9]} 18. Rfd1 {[%clk 0:02:27.5]}
18... Ng6 {[%clk 0:02:27.2]} 19. a4 {[%clk 0:02:24]} 19... Bf6 {[%clk
0:02:24.8]} 20. b5 {[%clk 0:02:21.1]} 20... axb5 {[%clk 0:02:21.7]} 21. axb5
{[%clk 0:02:19.2]} 21... Na5 {[%clk 0:02:21.9]} 22. Qb4 {[%clk 0:02:18.8]} 22...
h5 {[%clk 0:02:21.8]} 23. Na4 {[%clk 0:02:05.3]} 23... g4 {[%clk 0:02:09.9]} 24.
hxg4 {[%clk 0:02:04.3]} 24... hxg4 {[%clk 0:02:10.8]} 25. Nh2 {[%clk 0:02:03.8]}
25... g3 {[%clk 0:02:05.2]} 26. fxg3 {[%clk 0:02:03.1]} 26... Bg5 {[%clk
0:02:03.6]} 27. Rc3 {[%clk 0:02:02]} 27... Bxe3+ {[%clk 0:01:24.3]} 28. Rxe3
{[%clk 0:01:58.7]} 28... Qg5 {[%clk 0:01:25.2]} 29. Kf2 {[%clk 0:01:57.5]} 29...
Be4 {[%clk 0:01:20.7]} 30. Nf3 {[%clk 0:01:56.5]} 30... Qf6 {[%clk 0:01:19.6]}
31. Nb6 {[%clk 0:01:55.1]} 31... Ra7 {[%clk 0:01:19.3]} 32. Nd7 {[%clk
0:01:53.5]} 32... Qf5 {[%clk 0:01:13.6]} 33. Nxf8 {[%clk 0:01:51.8]} 33... Nxf8
{[%clk 0:01:14.5]} 34. Ra1 {[%clk 0:01:44.7]} 34... Nc6 {[%clk 0:01:10.7]} 35.
bxc6 {[%clk 0:01:45.3]} 35... Rxa1 {[%clk 0:01:10.9]} 36. cxb7 {[%clk
0:01:45.9]} 36... Rb1 {[%clk 0:01:08.4]} 37. b8=Q {[%clk 0:01:45.2]} 37... Rxb4
{[%clk 0:01:08.7]} 38. Qxb4 {[%clk 0:01:44.5]} 38... Ng6 {[%clk 0:01:09]} 39.
Ra3 {[%clk 0:01:34.8]} 39... e5 {[%clk 0:01:09]} 40. dxe5 {[%clk 0:01:29.6]}
40... Nxe5 {[%clk 0:01:09.9]} 41. Qb8+ {[%clk 0:01:28.8]} 41... Kh7 {[%clk
0:01:06.8]} 42. Qxe5 {[%clk 0:01:26.3]} 42... Qc8 {[%clk 0:01:01.6]} 43. Ng5+
{[%clk 0:01:18.7]} 43... Kg8 {[%clk 0:00:58.2]} 44. Nxe4 {[%clk 0:01:14.7]}
44... f6 {[%clk 0:00:58.3]} 45. Nxf6+ {[%clk 0:01:12.1]} 45... Kf7 {[%clk
0:00:58.3]} 46. Qxd5+ {[%clk 0:01:10.8]} 46... Kxf6 {[%clk 0:00:58.6]} 47. Rf3+
{[%clk 0:01:09.6]} 47... Kg7 {[%clk 0:00:58.8]} 48. Qf7+ {[%clk 0:01:04.8]}
48... Kh8 {[%clk 0:00:58.2]} 49. Qh5+ {[%clk 0:01:01]} 49... Kg7 {[%clk
0:00:57.6]} 50. Qg5+ {[%clk 0:01:00.5]} 50... Kh8 {[%clk 0:00:56.2]} 51. Qh6+
{[%clk 0:01:00.1]} 51... Kg8 {[%clk 0:00:56.3]} 52. Bc4+ {[%clk 0:01:00]} 1-0

[Event "*** Titled Tuesday Blitz"]
[Site "Chess.com"]
[Date "2021.04.27"]
[Round "11"]
[White "Sergey85Rodchenkov"]
[Black "WildBizon"]
[Result "1-0"]
[WhiteElo "2539"]
[BlackElo "2632"]
[TimeControl "180+1"]
[EndTime "12:03:34 PDT"]
[Termination "Sergey85Rodchenkov won by resignation"]

1. e4 {[%clk 0:03:00.7]} 1... c6 {[%clk 0:02:58.2]} 2. d4 {[%clk 0:03:00.2]}
2... d5 {[%clk 0:02:58.5]} 3. exd5 {[%clk 0:03:01.1]} 3... cxd5 {[%clk
0:02:58.7]} 4. c4 {[%clk 0:03:02]} 4... Nf6 {[%clk 0:02:56.5]} 5. Nc3 {[%clk
0:03:02.2]} 5... e6 {[%clk 0:02:56.5]} 6. Nf3 {[%clk 0:03:01.9]} 6... Bb4 {[%clk
0:02:55.4]} 7. Bg5 {[%clk 0:03:01.2]} 7... Nc6 {[%clk 0:02:53.4]} 8. Rc1 {[%clk
0:02:59.7]} 8... O-O {[%clk 0:02:53]} 9. Bd3 {[%clk 0:02:58.9]} 9... h6 {[%clk
0:02:53.3]} 10. Bh4 {[%clk 0:02:58.4]} 10... Be7 {[%clk 0:02:52.6]} 11. O-O
{[%clk 0:02:57.6]} 11... dxc4 {[%clk 0:02:50.4]} 12. Bxc4 {[%clk 0:02:57.3]}
12... b6 {[%clk 0:02:44.1]} 13. a3 {[%clk 0:02:57.1]} 13... Bb7 {[%clk
0:02:44.3]} 14. Qd3 {[%clk 0:02:57]} 14... Nh5 {[%clk 0:02:37.9]} 15. Bg3 {[%clk
0:02:50.5]} 15... Nxg3 {[%clk 0:02:36.8]} 16. hxg3 {[%clk 0:02:51.3]} 16... Bf6
{[%clk 0:02:35.8]} 17. Rfd1 {[%clk 0:02:51.3]} 17... Ne7 {[%clk 0:02:32.5]} 18.
Ne4 {[%clk 0:02:49.5]} 18... Nf5 {[%clk 0:02:18.9]} 19. Ne5 {[%clk 0:01:55.5]}
19... Rc8 {[%clk 0:02:12.5]} 20. Nxf6+ {[%clk 0:01:47.2]} 20... gxf6 {[%clk
0:02:12.5]} 21. Ng4 {[%clk 0:01:44.6]} 21... Kg7 {[%clk 0:02:09.7]} 22. Ne3
{[%clk 0:01:25.8]} 22... Nxe3 {[%clk 0:02:08.9]} 23. Qxe3 {[%clk 0:01:25.9]}
23... Rxc4 {[%clk 0:02:05]} 24. Rxc4 {[%clk 0:01:23.2]} 24... Qd5 {[%clk
0:02:04.6]} 25. Qf3 {[%clk 0:01:22.1]} 25... Qxc4 {[%clk 0:02:04.1]} 26. Qxb7
{[%clk 0:01:22]} 26... Rd8 {[%clk 0:01:59.8]} 27. Qxa7 {[%clk 0:01:19.7]} 27...
Rxd4 {[%clk 0:01:59.9]} 28. Rxd4 {[%clk 0:01:16.5]} 28... Qxd4 {[%clk
0:02:00.8]} 29. b4 {[%clk 0:01:15.3]} 29... h5 {[%clk 0:01:50.1]} 30. Qc7 {[%clk
0:01:06]} 30... f5 {[%clk 0:01:33]} 31. b5 {[%clk 0:00:53.2]} 31... e5 {[%clk
0:01:27.2]} 32. Kh2 {[%clk 0:00:48.2]} 32... h4 {[%clk 0:01:25]} 33. gxh4 {[%clk
0:00:45.7]} 33... Qxh4+ {[%clk 0:01:25.1]} 34. Kg1 {[%clk 0:00:45.9]} 34... Qd4
{[%clk 0:01:25.8]} 35. a4 {[%clk 0:00:40.4]} 35... e4 {[%clk 0:01:19]} 36. Qf4
{[%clk 0:00:33.7]} 36... Kf6 {[%clk 0:01:16.3]} 37. g4 {[%clk 0:00:33.2]} 37...
Qd1+ {[%clk 0:00:46.3]} 38. Kg2 {[%clk 0:00:33]} 38... Qxg4+ {[%clk 0:00:45.4]}
39. Qxg4 {[%clk 0:00:32.7]} 39... fxg4 {[%clk 0:00:46.3]} 40. a5 {[%clk
0:00:32.4]} 40... Ke6 {[%clk 0:00:35.6]} 41. a6 {[%clk 0:00:31.1]} 1-0

[Event "*** Titled Tuesday Blitz"]
[Site "Chess.com"]
[Date "2021.04.27"]
[Round "11"]
[White "rachidhuilda"]
[Black "JoseRemolar"]
[Result "0-1"]
[WhiteElo "2279"]
[BlackElo "2433"]
[TimeControl "180+1"]
[EndTime "12:03:34 PDT"]
[Termination "JoseRemolar won on time"]

1. d4 {[%clk 0:03:00.9]} 1... Nf6 {[%clk 0:02:59.7]} 2. Bg5 {[%clk 0:02:59.7]}
2... g6 {[%clk 0:02:58.2]} 3. Bxf6 {[%clk 0:02:58.8]} 3... exf6 {[%clk
0:02:59.1]} 4. e3 {[%clk 0:02:58.8]} 4... Bg7 {[%clk 0:02:59.6]} 5. g3 {[%clk
0:02:56.6]} 5... O-O {[%clk 0:03:00.5]} 6. Bg2 {[%clk 0:02:56.8]} 6... d5 {[%clk
0:03:01.4]} 7. Ne2 {[%clk 0:02:56.7]} 7... c6 {[%clk 0:03:02.3]} 8. O-O {[%clk
0:02:56.8]} 8... Be6 {[%clk 0:03:02.5]} 9. Nd2 {[%clk 0:02:56.9]} 9... f5 {[%clk
0:03:03.4]} 10. Nf4 {[%clk 0:02:56.2]} 10... Nd7 {[%clk 0:03:04.1]} 11. Nxe6
{[%clk 0:02:55.5]} 11... fxe6 {[%clk 0:03:05]} 12. c4 {[%clk 0:02:55.8]} 12...
Nf6 {[%clk 0:03:05.6]} 13. b4 {[%clk 0:02:54.6]} 13... Ne4 {[%clk 0:03:05.1]}
14. Nxe4 {[%clk 0:02:53.2]} 14... fxe4 {[%clk 0:03:04.2]} 15. Qb3 {[%clk
0:02:51.2]} 15... Rf7 {[%clk 0:02:31.8]} 16. b5 {[%clk 0:02:50.5]} 16... Qg5
{[%clk 0:02:27]} 17. bxc6 {[%clk 0:02:39.7]} 17... bxc6 {[%clk 0:02:27.9]} 18.
Rab1 {[%clk 0:02:25.8]} 18... Raf8 {[%clk 0:02:26.4]} 19. Qa4 {[%clk 0:02:19.4]}
19... Rxf2 {[%clk 0:02:16.7]} 20. Rxf2 {[%clk 0:02:10.2]} 20... Qxe3 {[%clk
0:02:16.9]} 21. Rf1 {[%clk 0:02:02.7]} 21... Bxd4 {[%clk 0:02:17]} 22. Qc2
{[%clk 0:01:57.1]} 22... dxc4 {[%clk 0:02:03.3]} 23. Bh3 {[%clk 0:01:52.3]}
23... c3 {[%clk 0:01:59.3]} 24. Bxe6+ {[%clk 0:01:25]} 24... Kg7 {[%clk
0:01:57.8]} 25. Bb3 {[%clk 0:01:18.6]} 25... Qf3 {[%clk 0:00:40.9]} 26. Bc4
{[%clk 0:01:15.2]} 26... Bxf2+ {[%clk 0:00:31.5]} 27. Rxf2 {[%clk 0:01:15]}
27... Qxf2+ {[%clk 0:00:32.4]} 28. Kh1 {[%clk 0:01:10.1]} 28... Qxc2 {[%clk
0:00:31.1]} 0-1